bitfinex/quotes_SOLUSD_20240916
["timestamp","ask_amount","ask_price","bid_price","bid_amount"]
[1726500057825,20.2540878,131.41,131.37,26.6418]
[1726500058627,27.8638878,131.41,131.37,19.0299]
[1726500058924,7.6109,131.39,131.35,7.6131]
[1726500059112,20.0,131.39,131.35,7.6131]
[1726500059303,20.0,131.39,131.36,7.6126]
[1726500059922,20.0,131.4,131.36,7.6126]
[1726500061117,20.0,131.4,131.36,19.0313]
[1726500061325,0.2540878,131.41,131.36,19.0313]
[1726500061523,0.2540878,131.41,131.38,7.611]
[1726500062641,0.2540878,131.41,131.39,7.6108]
[1726500062802,0.2540878,131.41,131.38,26.6396]
[1726500064209,0.2540878,131.41,131.38,19.0284]
[1726500064419,0.2540878,131.41,131.38,26.6397]
[1726500065838,0.2540878,131.41,131.39,7.6108]
[1726500066528,0.2540878,131.41,131.38,26.6397]
[1726500069834,0.2540878,131.41,131.37,7.6118]
[1726500070232,7.8638878,131.41,131.36,7.6124]
[1726500070540,7.8638878,131.41,131.35,26.645]
[1726500070541,27.6105,131.4,131.35,26.645]
[1726500071337,7.6114,131.39,131.33,7.6139]
[1726500071839,27.6116,131.38,131.33,7.6139]
[1726500072013,7.6116,131.38,131.33,7.6139]
[1726500072414,20.0,131.37,131.33,7.6139]
[1726500073211,7.6123,131.37,131.32,26.6516]
[1726500073528,27.6115,131.38,131.32,26.6516]
[1726500074129,20.0,131.38,131.32,19.0367]
[1726500074422,27.6115,131.38,131.32,19.0367]
[1726500075434,27.6115,131.38,131.32,26.6515]
[1726500075634,20.0,131.38,131.33,7.6142]
[1726500076230,20.0,131.38,131.34,7.6136]
[1726500078231,20.0,131.38,131.36,7.6123]
[1726500078637,20.0,131.38,131.34,19.0337]
[1726500078638,20.0,131.38,131.35,7.6131]
[1726500079025,20.0,131.38,131.34,26.6473]
[1726500079548,27.6115,131.38,131.34,19.0337]
[1726500079846,20.0,131.38,131.34,19.0337]
[1726500081117,20.0,131.38,131.34,26.6473]
[1726500081324,20.0,131.38,131.35,7.6132]
[1726500081525,15.5549,131.39,131.36,7.6126]
[1726500082050,15.5549,131.39,131.36,19.0308]
[1726500082249,15.5549,131.39,131.36,26.6433]
[1726500082735,15.5549,131.39,131.36,19.0308]
[1726500083120,7.8639878,131.41,131.36,26.6433]
[1726500083440,20.0,131.4,131.37,7.6119]
[1726500083629,20.0,131.4,131.38,7.6114]
[1726500083830,20.0,131.4,131.37,7.6119]
[1726500084426,20.2540878,131.41,131.37,7.6119]
[1726500085849,27.8637878,131.41,131.36,26.6433]
[1726500086343,27.8637878,131.41,131.37,7.612]
[1726500086531,27.8637878,131.41,131.36,19.0308]
[1726500086532,27.8637878,131.41,131.36,26.6432]
[1726500088451,27.8637878,131.41,131.37,7.612]
[1726500089366,27.72234214,131.41,131.37,7.612]
[1726500089641,27.72234214,131.41,131.36,26.6433]
[1726500090532,7.6115,131.38,131.33,19.0355]
[1726500090737,20.0,131.38,131.34,7.6137]
[1726500091638,27.6115,131.38,131.33,26.6496]
[1726500094038,27.6115,131.38,131.34,7.6136]
[1726500094239,20.0,131.38,131.34,7.6136]
[1726500095954,20.0,131.38,131.35,19.0328]
[1726500096151,20.0,131.39,131.35,26.6458]
[1726500099440,27.6116,131.38,131.33,7.6142]
[1726500101063,27.6116,131.38,131.34,7.6137]
[1726500101862,27.6116,131.38,131.33,7.6142]
[1726500103456,20.0,131.38,131.34,19.0342]
[1726500103669,20.11264214,131.41,131.35,7.6128]
[1726500103970,20.0,131.38,131.35,7.6128]
[1726500104942,20.0,131.39,131.36,7.6125]
[1726500105655,0.11264214,131.41,131.37,7.6116]
[1726500107064,27.72254214,131.41,131.36,26.6436]
[1726500107239,7.6105,131.4,131.36,19.0312]
[1726500107566,7.6105,131.4,131.35,7.613]
[1726500107567,20.0,131.39,131.35,7.6131]
[1726500108843,7.611,131.39,131.35,7.6131]
[1726500109044,27.6104,131.4,131.35,7.6131]
[1726500109853,7.6119,131.38,131.33,26.6492]
[1726500110064,7.6119,131.38,131.33,19.0349]
[1726500110235,20.0,131.37,131.33,26.6492]
[1726500111055,20.0,131.38,131.33,19.0349]
[1726500111643,20.0,131.38,131.34,7.6136]
[1726500112275,20.0,131.37,131.34,7.6136]
[1726500114168,7.6115,131.38,131.34,7.6136]
[1726500114460,7.611,131.39,131.34,7.6136]
[1726500114661,20.0,131.38,131.34,7.6136]
[1726500114854,20.0,131.38,131.35,7.6132]
[1726500115271,7.6104,131.4,131.35,7.6132]
[1726500115558,20.0,131.39,131.35,7.6132]
[1726500117062,7.6111,131.39,131.35,7.6132]
[1726500117470,20.0,131.38,131.35,7.6132]
[1726500118666,20.0,131.34,131.31,0.14144566]
[1726500118877,7.6139,131.34,131.31,0.14144566]
[1726500119045,20.0,131.33,131.31,0.14144566]
[1726500119369,27.6145,131.33,131.31,0.14144566]
[1726500119567,11.65772569,131.34,131.31,0.14144566]
[1726500120054,20.0,131.33,131.31,0.14144566]
[1726500120252,7.6144,131.33,131.31,0.14144566]
[1726500121956,20.0,131.33,131.31,0.14144566]
[1726500122696,38.13542569,131.37,131.32,7.6145]
[1726500122697,26.71692569,131.37,131.32,7.6145]
[1726500123848,26.71692569,131.37,131.33,7.6142]
[1726500124046,24.04382569,131.37,131.34,7.6137]
[1726500124249,4.04382569,131.37,131.34,7.6137]
[1726500124563,7.611,131.39,131.34,7.6137]
[1726500124760,12.15502673,131.4,131.36,7.6125]
[1726500124969,4.54452673,131.4,131.36,7.6125]
[1726500125147,4.54452673,131.4,131.37,7.6119]
[1726500125463,4.54452673,131.4,131.36,7.6125]
[1726500126570,24.54452673,131.4,131.36,7.6125]
[1726500127367,32.15492673,131.4,131.35,26.6453]
[1726500127778,7.611,131.39,131.35,19.0322]
[1726500128352,7.6116,131.38,131.34,7.6136]
[1726500128851,7.611,131.39,131.34,7.6136]
[1726500129052,20.11264214,131.41,131.37,19.0295]
[1726500129268,20.11264214,131.41,131.38,7.6113]
[1726500129569,0.11264214,131.41,131.38,7.6113]
[1726500129748,0.11264214,131.41,131.37,26.6413]
[1726500129749,20.11264214,131.41,131.37,26.6413]
[1726500130446,27.72244214,131.41,131.37,26.6413]
[1726500130668,7.72244214,131.41,131.37,26.6413]
[1726500130978,20.0,131.4,131.37,26.6413]
[1726500131470,0.11264214,131.41,131.37,26.6413]
[1726500132049,20.11264214,131.41,131.37,26.6413]
[1726500132467,20.11264214,131.41,131.38,7.6114]
[1726500134474,20.11264214,131.41,131.4,7.6103]
[1726500134664,0.11264214,131.41,131.39,26.6374]
[1726500135258,0.11264214,131.41,131.4,7.6103]
[1726500140875,0.2540878,131.45,131.4,7.6103]
[1726500140876,0.2540878,131.45,131.44,50.404884]
[1726500141593,0.2540878,131.45,131.44,117.92298756]
[1726500142366,0.2540878,131.45,131.44,119.35107719]
[1726500142577,0.2540878,131.45,131.44,117.92298756]
[1726500143168,0.2540878,131.45,131.44,49.741]
[1726500143379,0.2540878,131.45,131.44,19.02]
[1726500144556,0.2540878,131.45,131.44,26.628]
[1726500146518,0.2540878,131.45,131.41,6.4321]
[1726500146519,0.2540878,131.45,131.42,7.6088]
[1726500147167,7.8615878,131.45,131.41,19.0234]
[1726500147690,20.2540878,131.45,131.41,26.6327]
[1726500147987,20.2540878,131.45,131.41,19.0234]
[1726500148473,0.2540878,131.45,131.43,7.6085]
[1726500150207,0.2540878,131.45,131.44,7.608]
[1726500151974,0.2540878,131.45,131.44,31.384884]
[1726500152294,0.2540878,131.45,131.44,7.608]
[1726500152792,0.2540878,131.45,131.43,26.629]
[1726500154482,0.2540878,131.45,131.43,19.0206]
[1726500154981,0.2540878,131.45,131.43,26.6292]
[1726500155178,0.2540878,131.45,131.44,7.608]
[1726500157793,0.2540878,131.45,131.44,31.384884]
[1726500159396,0.2540878,131.45,131.44,7.608]
[1726500159802,0.2540878,131.45,131.44,31.384884]
[1726500160172,0.2540878,131.45,131.44,7.608]
[1726500160401,0.2540878,131.45,131.43,26.6291]
[1726500160699,0.2540878,131.45,131.43,19.0206]
[1726500161081,0.2540878,131.45,131.43,26.6291]
[1726500161279,0.2540878,131.45,131.44,7.608]
[1726500164285,0.2540878,131.45,131.43,26.629]
[1726500166396,0.2540878,131.45,131.43,19.0206]
[1726500167094,7.8614878,131.45,131.41,7.6097]
[1726500167283,0.2540878,131.45,131.41,7.6097]
[1726500168490,0.2540878,131.45,131.42,7.6091]
[1726500174097,0.2540878,131.45,131.44,7.608]
[1726500182406,0.2540878,131.45,131.43,7.6083]
[1726500182727,0.2540878,131.45,131.44,7.608]
[1726500182924,0.2540878,131.45,131.42,19.0225]
[1726500183720,0.2540878,131.45,131.39,15.0254]
[1726500183721,7.6082,131.44,131.4,7.6103]
[1726500184030,20.0,131.43,131.39,26.6371]
[1726500184235,20.0,131.43,131.4,7.6101]
[1726500185028,27.608,131.44,131.4,7.6101]
[1726500186126,27.608,131.44,131.41,7.6096]
[1726500186127,20.0,131.44,131.41,7.6096]
[1726500186625,20.0,131.44,131.41,19.023]
[1726500187437,20.0,131.44,131.41,26.6327]
[1726500190026,20.0,131.44,131.34,38.068]
[1726500190027,20.0,131.42,131.34,38.068]
[1726500190202,7.6107,131.4,131.32,22.1663]
[1726500190403,7.6116,131.38,131.33,7.6139]
[1726500190610,7.6116,131.38,131.32,22.1663]
[1726500191307,7.6116,131.38,131.34,7.6137]
[1726500192710,6.1116,131.38,131.34,7.6137]
[1726500194618,7.611,131.39,131.34,7.6137]
[1726500195309,27.6105,131.4,131.35,7.613]
[1726500195538,15.7097,131.41,131.33,62.46200183]
[1726500195719,15.7097,131.41,131.38,7.6113]
[1726500196019,56.8973878,131.45,131.38,7.6113]
[1726500196020,7.6096,131.42,131.38,26.6392]
[1726500196215,7.6099,131.41,131.37,7.6119]
[1726500198414,20.0,131.41,131.38,7.6114]
[1726500198615,20.0,131.41,131.39,7.6104]
[1726500199146,20.0,131.41,131.38,7.6113]
[1726500199522,20.0,131.41,131.37,26.6415]
[1726500200233,7.6103,131.41,131.37,19.0296]
[1726500200622,7.6103,131.41,131.37,26.6416]
[1726500200821,7.6093,131.42,131.38,7.6114]
[1726500201038,20.0,131.41,131.37,19.0296]
[1726500201918,20.0,131.44,131.37,19.0296]
[1726500202116,20.0,131.42,131.37,19.0296]
[1726500202340,7.6096,131.42,131.37,26.6415]
[1726500202523,27.6103,131.41,131.37,19.0296]
[1726500204643,7.6103,131.4,131.37,19.0296]
[1726500206241,7.611,131.39,131.34,26.647]
[1726500206933,7.611,131.39,131.35,7.6131]
[1726500207136,7.6105,131.4,131.36,7.6126]
[1726500207535,20.0,131.39,131.36,7.6126]
[1726500209046,20.0,131.39,131.35,7.6131]
[1726500209340,27.6115,131.38,131.34,26.6473]
[1726500209536,20.0,131.38,131.34,26.6473]
[1726500210328,20.0,131.38,131.35,7.6132]
[1726500211027,20.0,131.39,131.36,7.6125]
[1726500214267,20.0,131.39,131.37,7.612]
[1726500214632,20.0,131.4,131.37,7.612]
[1726500215135,20.0,131.42,131.39,7.6107]
[1726500216044,27.6092,131.42,131.38,26.6395]
[1726500216247,20.0,131.42,131.35,19.0318]
[1726500216453,20.0,131.39,131.36,7.6122]
[1726500219255,7.611,131.39,131.35,26.6448]
[1726500220664,7.6105,131.4,131.36,7.6124]
[1726500220839,7.6097,131.41,131.37,7.6119]
[1726500221039,28.93749675,131.42,131.38,7.6114]
[1726500221234,27.6093,131.42,131.38,7.6114]
[1726500222838,20.0,131.42,131.38,7.6114]
[1726500223041,20.0,131.42,131.39,7.6109]
[1726500224053,20.0,131.42,131.4,7.6103]
[1726500224251,20.0,131.42,131.37,19.0298]
[1726500224252,20.0,131.43,131.39,7.6107]
[1726500224839,20.0,131.43,131.4,7.6102]
[1726500226047,20.2540878,131.45,131.42,7.6091]
[1726500226249,20.2540878,131.45,131.42,7.6087]
[1726500226941,0.2540878,131.45,131.43,7.6085]
[1726500230850,0.2540878,131.45,131.42,7.6091]
[1726500232070,0.2540878,131.45,131.41,19.0236]
[1726500232071,0.2540878,131.45,131.43,7.6085]
[1726500233672,26.3599878,131.48,131.43,7.6085]
[1726500234374,7.6063,131.47,131.42,7.609]
[1726500235177,11.77569883,131.47,131.42,7.609]
[1726500236048,20.0,131.46,131.42,7.609]
[1726500237273,20.0,131.45,131.42,7.609]
[1726500240073,20.0,131.45,131.36,60.2939]
[1726500240074,20.0,131.47,131.43,19.021]
[1726500240314,27.6064,131.47,131.43,26.6294]
[1726500240581,7.6071,131.46,131.43,19.021]
[1726500240782,18.5,131.45,131.42,7.609]
[1726500241459,50.0,131.47,131.4,19.0249]
[1726500241657,23.776884,131.44,131.4,19.0249]
[1726500241866,31.385084,131.44,131.4,19.0249]
[1726500242579,7.6088,131.43,131.4,19.0249]
[1726500242980,20.0,131.42,131.4,19.0249]
[1726500243192,20.0,131.43,131.4,19.0249]
[1726500243489,43.776884,131.46,131.4,19.0249]
[1726500243886,51.384184,131.46,131.42,7.6091]
[1726500245077,7.6075,131.45,131.4,26.6346]
[1726500245280,20.0,131.44,131.41,7.6097]
[1726500246188,20.0,131.46,131.43,7.6085]
[1726500246388,20.0,131.47,131.44,7.6078]
[1726500246606,20.0,131.47,131.44,19.0195]
[1726500247190,20.0,131.47,131.44,26.6274]
[1726500247382,7.8592878,131.49,131.44,26.6274]
[1726500247882,20.0,131.48,131.44,26.6274]
[1726500248965,0.2540878,131.49,131.44,19.0195]
[1726500249165,0.2540878,131.49,131.47,7.6062]
[1726500249398,0.2540878,131.49,131.46,26.6226]
[1726500249761,6.3580878,131.51,131.46,26.6226]
[1726500250177,7.6046,131.5,131.46,19.0159]
[1726500250394,27.6052,131.49,131.44,7.6079]
[1726500251069,20.0,131.46,131.43,19.0212]
[1726500251560,18.5,131.46,131.43,19.0212]
[1726500253401,7.6056,131.49,131.43,19.0212]
[1726500253582,7.6056,131.49,131.44,7.6079]
[1726500253993,7.6057,131.48,131.44,7.6079]
[1726500254181,20.0,131.47,131.43,26.6297]
[1726500255176,20.0,131.47,131.44,7.6079]
[1726500255177,18.5,131.47,131.44,7.6079]
[1726500257304,18.5,131.47,131.43,19.0212]
[1726500257597,7.6063,131.47,131.43,26.6297]
[1726500257998,20.0,131.46,131.43,26.6297]
[1726500259191,20.0,131.46,131.43,19.0212]
[1726500259404,20.0,131.46,131.41,6.4243]
[1726500260325,7.6076,131.45,131.41,14.0339]
[1726500261202,20.0,131.44,131.4,26.635]
[1726500261498,20.0,131.43,131.4,19.0248]
[1726500262190,20.0,131.44,131.4,19.0248]
[1726500262900,20.0,131.44,131.41,7.6093]
[1726500266507,27.6069,131.46,131.42,7.6091]
[1726500267990,7.6074,131.45,131.41,7.6095]
[1726500268518,20.0,131.44,131.41,7.6095]
[1726500268909,20.0,131.44,131.4,26.635]
[1726500268910,27.6083,131.44,131.4,26.635]
[1726500269599,7.6086,131.43,131.4,19.0248]
[1726500269992,20.0,131.42,131.4,19.0248]
[1726500270612,20.0,131.42,131.39,24.2350878]
[1726500271316,7.6081,131.44,131.4,7.6099]
[1726500271626,20.0,131.43,131.4,7.6099]
[1726500273103,20.0,131.44,131.41,7.6097]
[1726500275329,20.0,131.4,131.39,0.2540878]
[1726500278716,27.6103,131.4,131.39,0.2540878]
[1726500279503,20.0,131.4,131.39,0.2540878]
[1726500281323,19.0187,131.45,131.39,0.2540878]
[1726500281324,7.6088,131.43,131.39,0.2540878]
[1726500281518,20.0,131.42,131.39,7.8647878]
[1726500281725,20.0,131.42,131.39,0.2540878]
[1726500282500,7.6094,131.42,131.39,0.2540878]
[1726500282716,27.6099,131.41,131.39,0.2540878]
[1726500282928,20.0,131.41,131.39,0.2540878]
[1726500287932,20.0,131.42,131.39,0.2540878]
[1726500288117,20.0,131.45,131.39,0.2540878]
[1726500288527,7.6082,131.44,131.4,7.6103]
[1726500288737,27.6076,131.45,131.4,7.6103]
[1726500289039,27.6076,131.45,131.41,7.6097]
[1726500289040,20.0,131.44,131.41,7.6097]
[1726500289211,20.0,131.44,131.4,26.6357]
[1726500290358,20.0,131.44,131.41,30.0]
[1726500290648,20.0,131.46,131.42,19.0227]
[1726500290809,7.6066,131.47,131.43,7.6085]
[1726500291844,7.6066,131.47,131.43,37.6085]
[1726500292218,20.0,131.46,131.43,37.6085]
[1726500292526,27.6075,131.45,131.43,30.0]
[1726500292734,20.0,131.45,131.4,7.6102]
[1726500293026,20.0,131.45,131.41,19.0239]
[1726500294224,20.0,131.46,131.43,7.6085]
[1726500295038,20.0,131.47,131.44,7.608]
[1726500295234,20.0,131.47,131.45,7.6073]
[1726500295406,73.9,131.48,131.45,7.6073]
[1726500295407,20.0,131.48,131.45,7.6073]
[1726500295806,20.0,131.48,131.44,7.6079]
[1726500296034,27.6059,131.48,131.44,7.6079]
[1726500298551,27.6059,131.48,131.43,19.0208]
[1726500298552,27.6059,131.48,131.43,26.6292]
[1726500299448,27.6059,131.48,131.44,7.6077]
[1726500301255,5.83096353,131.49,131.45,19.0179]
[1726500301429,7.6045,131.5,131.46,7.6066]
[1726500302530,27.6051,131.49,131.45,26.6252]
[1726500304431,7.6057,131.48,131.45,19.0179]
[1726500306043,20.0,131.48,131.45,26.6252]
[1726500306249,7.6047,131.5,131.45,26.6252]
[1726500306560,20.0,131.49,131.45,26.6252]
[1726500307248,23.7043818,131.53,131.47,19.0153]
[1726500307249,7.6034,131.52,131.47,19.0153]
[1726500307633,7.6034,131.52,131.47,26.6211]
[1726500308055,7.604,131.51,131.47,26.6211]
[1726500308439,20.0,131.5,131.47,26.6211]
[1726500308635,20.0,131.5,131.47,19.0153]
[1726500308951,27.6052,131.49,131.45,7.6074]
[1726500309534,7.6052,131.49,131.45,7.6074]
[1726500309959,20.0,131.48,131.45,7.6074]
[1726500310943,7.6057,131.48,131.44,19.0189]
[1726500311767,20.0,131.45,131.41,48.9684]
[1726500312674,27.6077,131.45,131.41,41.3587]
[1726500313039,7.6081,131.44,131.41,22.3351]
[1726500313244,20.0,131.43,131.39,0.2540878]
[1726500313446,20.0,131.43,131.4,7.6102]
[1726500313939,7.6075,131.45,131.4,7.6102]
[1726500314551,20.0,131.44,131.41,7.6097]
[1726500315397,7.6075,131.45,131.41,7.6097]
[1726500315670,20.0,131.44,131.41,7.6097]
[1726500317741,27.6081,131.44,131.4,26.6353]
[1726500318165,20.0,131.42,131.39,0.2540878]
[1726500318580,20.0,131.42,131.39,7.8647878]
[1726500318947,20.0,131.43,131.39,7.8647878]
[1726500321185,7.6089,131.43,131.39,0.2540878]
[1726500321360,7.6101,131.41,131.39,0.2540878]
[1726500321682,20.0,131.4,131.39,0.2540878]
[1726500323169,27.6103,131.4,131.39,0.2540878]
[1726500324585,20.0,131.4,131.39,0.2540878]
[1726500325158,27.6103,131.4,131.39,0.2540878]
[1726500336506,51.387184,131.4,131.39,0.2540878]
[1726500336676,51.387184,131.4,131.35,0.2540878]
[1726500336677,7.6123,131.37,131.35,0.2540878]
[1726500337174,59.850284,131.4,131.35,0.2540878]
[1726500337588,20.0,131.38,131.35,7.8668878]
[1726500337787,20.0,131.38,131.35,0.2540878]
[1726500338405,20.0,131.38,131.35,7.8672878]
[1726500338695,20.0,131.38,131.35,0.2540878]
[1726500338999,20.0,131.38,131.35,7.8671878]
[1726500345914,20.0,131.39,131.36,7.6126]
[1726500346791,27.6109,131.39,131.35,26.8998878]
[1726500347516,27.6109,131.39,131.36,7.6126]
[1726500347692,20.0,131.39,131.36,7.6126]
[1726500348912,20.0,131.37,131.35,19.2868878]
[1726500349416,20.0,131.37,131.35,26.8999878]
[1726500349598,7.6104,131.4,131.36,7.6126]
[1726500349804,20.0,131.39,131.36,7.6126]
[1726500350731,27.6114,131.39,131.35,26.9000878]
[1726500351023,7.6116,131.38,131.35,19.2868878]
[1726500351992,20.0,131.37,131.35,19.2868878]
[1726500352430,20.0,131.37,131.35,0.2540878]
[1726500354228,27.6122,131.37,131.35,0.2540878]
[1726500355520,20.0,131.37,131.35,0.2540878]
[1726500356096,20.0,131.37,131.35,7.8671878]
[1726500356515,20.0,131.38,131.35,7.8671878]
[1726500356794,27.6115,131.38,131.35,0.2540878]
[1726500360321,7.611,131.39,131.35,7.8671878]
[1726500360617,20.0,131.38,131.36,19.0314]
[1726500361031,20.0,131.39,131.37,7.612]
[1726500361318,20.0,131.4,131.36,19.0314]
[1726500361515,20.0,131.41,131.38,7.6114]
[1726500362336,27.6098,131.41,131.37,7.6119]
[1726500363031,27.6098,131.41,131.38,7.6114]
[1726500363032,20.0,131.41,131.38,7.6114]
[1726500363320,7.6086,131.43,131.39,7.6105]
[1726500363624,4.442794,131.45,131.4,7.6099]
[1726500363809,12.050394,131.45,131.41,7.6096]
[1726500364912,20.0,131.44,131.4,26.6356]
[1726500365316,25.3972,131.48,131.42,7.6089]
[1726500365317,4.442794,131.48,131.42,7.6089]
[1726500365915,4.442794,131.48,131.43,7.6085]
[1726500367000,4.442794,131.48,131.44,7.6078]
[1726500367001,12.048594,131.48,131.44,7.6078]
[1726500367201,7.8593878,131.49,131.45,7.6074]
[1726500367420,7.8593878,131.49,131.44,35.0675]
[1726500367421,0.2540878,131.49,131.46,7.6068]
[1726500367950,7.8592878,131.49,131.44,49.1527]
[1726500368115,0.2540878,131.49,131.45,7.6074]
[1726500369324,20.2540878,131.49,131.45,7.6074]
[1726500370319,0.2540878,131.49,131.46,7.6068]
[1726500370705,0.2540878,131.49,131.47,7.6062]
[1726500371912,0.2540878,131.49,131.46,19.0163]
[1726500372125,0.2540878,131.49,131.48,7.6057]
[1726500372629,0.2540878,131.49,131.47,7.6061]
[1726500374823,0.2540878,131.49,131.46,26.623]
[1726500376729,7.8592878,131.49,131.46,19.0163]
[1726500377131,20.0,131.48,131.46,19.0163]
[1726500378922,27.6058,131.48,131.44,30.1331]
[1726500381044,27.6058,131.48,131.44,7.6078]
[1726500381245,27.6058,131.48,131.43,26.6288]
[1726500381749,27.6058,131.48,131.44,7.6079]
[1726500383154,7.8593878,131.49,131.45,7.6074]
[1726500383451,20.0,131.48,131.45,7.6074]
[1726500386355,0.2540878,131.49,131.46,7.6068]
[1726500386522,27.8591878,131.49,131.45,26.6256]
[1726500388638,20.0,131.47,131.45,19.0184]
[1726500391154,7.8593878,131.49,131.45,26.6258]
[1726500391455,20.0,131.48,131.45,26.6258]
[1726500391823,7.6068,131.46,131.42,26.6313]
[1726500392042,20.0,131.45,131.42,26.6309]
[1726500392255,20.0,131.45,131.43,7.6085]
[1726500392430,20.0,131.46,131.42,26.6311]
[1726500393128,7.607,131.46,131.42,26.6311]
[1726500393449,20.0,131.45,131.42,26.6311]
[1726500396171,7.6074,131.45,131.42,26.6311]
[1726500396456,20.0,131.44,131.42,26.6311]
[1726500399175,20.0,131.44,131.42,19.0222]
[1726500400341,20.0,131.44,131.41,7.6095]
[1726500401078,27.6081,131.44,131.4,13.8457]
[1726500402051,7.6076,131.45,131.41,7.6096]
[1726500402452,20.0,131.44,131.41,7.6096]
[1726500405368,7.608,131.44,131.41,7.6096]
[1726500405545,20.0,131.48,131.39,19.026]
[1726500405546,20.0,131.43,131.39,19.026]
[1726500405747,20.0,131.43,131.38,16.6577]
[1726500405944,50.0,131.46,131.37,7.6119]
[1726500405945,20.0,131.4,131.37,7.6119]
[1726500406143,27.6104,131.4,131.36,26.6431]
[1726500406457,27.6104,131.4,131.35,16.2890878]
[1726500406458,7.611,131.39,131.35,16.2890878]
[1726500406758,7.6116,131.38,131.35,0.2540878]
[1726500406957,20.0,131.37,131.35,0.2540878]
[1726500407478,20.0,131.38,131.35,0.2540878]
[1726500407962,27.6118,131.38,131.35,0.2540878]
[1726500408872,7.6126,131.36,131.35,0.2540878]
[1726500409071,7.6121,131.37,131.35,0.2540878]
[1726500409851,7.6116,131.38,131.35,0.2540878]
[1726500410047,20.0,131.37,131.35,0.2540878]
[1726500410487,20.0,131.38,131.35,0.2540878]
[1726500411967,20.0,131.38,131.35,7.8671878]
[1726500412554,20.0,131.39,131.35,7.8671878]
[1726500413479,7.611,131.39,131.35,7.8671878]
[1726500413956,20.0,131.38,131.35,7.8671878]
[1726500414582,20.0,131.38,131.35,0.2540878]
[1726500414787,20.0,131.37,131.35,0.2540878]
[1726500415969,27.6122,131.37,131.35,0.2540878]
[1726500418758,0.2,131.4,131.35,0.2540878]
[1726500418759,7.6114,131.39,131.35,0.2540878]
[1726500418960,20.0,131.38,131.35,0.2540878]
[1726500419174,20.0,131.38,131.35,7.8672878]
[1726500420283,27.6115,131.38,131.35,0.2540878]
[1726500420879,7.6121,131.37,131.35,0.2540878]
[1726500421985,0.2,131.4,131.35,0.2540878]
[1726500421986,7.6126,131.36,131.35,0.2540878]
[1726500425502,27.6149,131.32,131.31,0.2540878]
[1726500425983,20.0,131.32,131.31,0.2540878]
[1726500429477,27.6149,131.32,131.31,0.2540878]
[1726500430077,20.0,131.32,131.31,0.2540878]
[1726500435108,20.0,131.35,131.31,7.8695878]
[1726500435280,27.6133,131.35,131.31,7.8695878]
[1726500436204,27.6133,131.35,131.31,0.2540878]
[1726500438204,27.6133,131.35,131.31,7.8695878]
[1726500440588,20.0,131.35,131.31,7.8695878]
[1726500441093,20.0,131.36,131.32,19.037]
[1726500441293,7.6116,131.38,131.32,19.037]
[1726500441605,7.6111,131.39,131.34,19.034]
[1726500443383,7.6111,131.39,131.35,7.6131]
[1726500443587,20.0,131.38,131.34,26.6473]
[1726500444180,20.0,131.38,131.35,7.6131]
[1726500445221,27.6117,131.38,131.34,26.6476]
[1726500445885,7.611,131.39,131.34,26.6476]
[1726500446305,20.0,131.38,131.35,7.6129]
[1726500446507,7.611,131.39,131.35,7.6129]
[1726500446508,20.0,131.39,131.35,7.6129]
[1726500446912,27.611,131.39,131.35,7.6129]
[1726500448320,0.2,131.4,131.34,26.6476]